bitfinex/quotes_ETHUSD_20241122
["timestamp","ask_amount","ask_price","bid_price","bid_amount"]
[1732279054548,4.06273064,3351.7,3350.4,0.8022]
[1732279054727,5.98399,3351.3,3350.4,0.8022]
[1732279055313,3.0,3351.3,3350.4,0.8022]
[1732279055518,5.98388,3351.4,3350.4,0.8022]
[1732279056016,0.40627306,3351.6,3350.4,0.8022]
[1732279056017,3.38998306,3351.6,3350.4,0.8022]
[1732279056320,1.06273064,3351.7,3350.5,0.55]
[1732279056628,1.06273064,3351.7,3350.6,0.8275]
[1732279056922,2.98372,3351.6,3350.6,0.8275]
[1732279057122,0.40464506,3351.5,3350.6,0.8275]
[1732279057281,3.38838506,3351.5,3350.6,0.8275]
[1732279058436,1.06273064,3351.7,3350.6,0.8275]
[1732279058742,0.31083064,3351.7,3350.6,0.8275]
[1732279059337,3.29439064,3351.7,3350.6,0.8275]
[1732279059514,2.98369,3351.6,3350.6,0.8275]
[1732279059712,2.98365,3351.6,3350.6,0.8275]
[1732279060048,3.91150506,3351.6,3350.6,0.8275]
[1732279060342,2.9838,3351.5,3350.7,0.298]
[1732279060501,0.92779506,3351.6,3350.7,0.298]
[1732279061248,3.29440064,3351.7,3350.7,0.298]
[1732279061604,2.98382,3351.4,3350.7,0.298]
[1732279062007,2.98389,3351.4,3350.7,0.298]
[1732279062705,2.98368,3351.6,3350.7,0.298]
[1732279063045,0.62945106,3351.6,3350.7,0.298]
[1732279063339,2.98399,3351.3,3350.7,0.298]
[1732279063840,2.98408,3351.2,3350.7,0.298]
[1732279064206,2.98392,3351.3,3350.7,0.298]
[1732279064407,0.47186017,3351.4,3350.7,0.298]
[1732279064629,0.7945,3351.5,3350.7,0.298]
[1732279064907,3.29441064,3351.7,3350.8,1.1082]
[1732279065231,0.31083064,3351.7,3350.8,1.1082]
[1732279065432,4.27557275,3351.7,3350.8,1.1082]
[1732279065943,2.98366,3351.6,3350.8,1.1082]
[1732279066120,4.29196275,3351.7,3350.8,1.1082]
[1732279066309,3.31083064,3351.7,3350.8,1.1082]
[1732279066719,0.31083064,3351.7,3350.9,1.0871]
[1732279067317,0.32942306,3351.6,3350.9,1.0871]
[1732279067520,0.31083064,3351.7,3351.1,0.298]
[1732279067722,0.31083064,3351.7,3351.4,0.298]
[1732279067919,0.31083064,3351.7,3351.6,0.298]
[1732279068248,0.31083064,3351.7,3351.6,1.0853]
[1732279068441,0.31083064,3351.7,3351.6,1.6353]
[1732279069122,0.31083064,3351.7,3351.6,1.0853]
[1732279069707,0.31083064,3351.7,3351.6,0.9853]
[1732279069929,0.31083064,3351.7,3351.6,1.5353]
[1732279070249,0.31083064,3351.7,3351.6,1.68883]
[1732279073722,0.86120007,3353.4,3351.6,3.71161046]
[1732279073922,0.86120007,3353.4,3352.0,0.848]
[1732279074244,0.86120007,3353.4,3352.2,0.55]
[1732279074245,0.38432001,3353.3,3352.2,0.55]
[1732279076114,3.38432001,3353.3,3352.2,0.55]
[1732279076815,2.9823,3353.2,3352.2,0.55]
[1732279077014,2.9823,3353.2,3352.1,0.8092]
[1732279077015,0.99379005,3353.1,3352.1,0.8092]
[1732279077213,2.98251,3352.9,3352.1,0.8092]
[1732279077654,2.9826,3352.8,3352.1,0.8092]
[1732279077853,0.70788224,3352.7,3351.8,0.77]
[1732279078016,2.98281,3352.6,3351.8,0.77]
[1732279078417,3.7859,3352.5,3351.8,0.77]
[1732279078655,0.74765922,3352.4,3351.8,0.77]
[1732279079122,0.74765922,3352.4,3351.9,0.55]
[1732279079354,3.78558,3352.8,3351.9,0.5283]
[1732279079540,0.803,3352.8,3351.9,0.5283]
[1732279080462,6.29315238,3353.0,3351.9,0.5283]
[1732279080618,1.37651829,3352.9,3351.9,0.5283]
[1732279080815,2.98263,3352.8,3351.9,0.5283]
[1732279081343,1.37651829,3352.9,3351.9,0.5283]
[1732279081854,4.35902829,3352.9,3351.4,0.298]
[1732279082154,1.11656511,3352.8,3351.6,0.7723]
[1732279082357,1.11656511,3352.8,3351.8,0.7723]
[1732279082516,3.31073238,3353.0,3352.0,0.7723]
[1732279082517,0.44272975,3352.7,3352.0,0.7723]
[1732279083718,0.31073238,3353.0,3352.2,0.8221]
[1732279083954,3.05100007,3353.4,3352.3,0.55]
[1732279084603,0.05100007,3353.4,3352.3,0.55]
[1732279084716,0.68358201,3353.3,3352.3,0.55]
[1732279085264,0.68358201,3353.3,3352.4,0.298]
[1732279085763,0.68358201,3353.3,3352.5,0.7601]
[1732279087140,3.68358201,3353.3,3352.5,0.7601]
[1732279087323,0.68358201,3353.3,3352.5,0.7601]
[1732279087661,5.76108053,3353.4,3352.5,0.7601]
[1732279087662,1.02295725,3353.2,3352.5,0.7601]
[1732279088165,1.02295725,3353.2,3352.6,0.55]
[1732279088371,0.05100007,3353.4,3352.8,0.55]
[1732279088573,0.05100007,3353.4,3352.9,0.8135]
[1732279089239,0.05100007,3353.4,3353.1,0.8135]
[1732279089652,0.05100007,3353.4,3353.3,0.8135]
[1732279089947,0.05100007,3353.4,3353.3,1.3635]
[1732279090688,0.05100007,3353.4,3353.3,0.8135]
[1732279092344,0.05100007,3353.4,3353.3,1.3635]
[1732279092536,0.05100007,3353.4,3353.3,1.80065805]
[1732279093674,0.05100007,3353.4,3353.3,0.8135]
[1732279095141,0.05100007,3353.4,3352.6,1.3253]
[1732279096273,0.05100007,3353.4,3352.9,0.7934]
[1732279096664,0.05100007,3353.4,3353.0,0.55]
[1732279100264,0.05100007,3353.4,3353.1,0.298]
[1732279100552,0.43296336,3353.4,3353.1,0.298]
[1732279100766,0.05100007,3353.4,3353.1,0.298]
[1732279101167,0.05100007,3353.4,3352.7,0.298]
[1732279101367,0.05100007,3353.4,3352.6,0.78272721]
[1732279101368,0.05100007,3353.4,3352.9,0.298]
[1732279102787,0.05100007,3353.4,3353.0,0.298]
[1732279102993,0.05100007,3353.4,3353.2,0.298]
[1732279104101,0.05100007,3353.4,3353.3,0.848]
[1732279104598,0.05100007,3353.4,3353.3,1.7753]
[1732279104772,0.05100007,3353.4,3353.3,1.6148]
[1732279108179,0.05100007,3353.4,3353.3,1.0648]
[1732279108480,0.05100007,3353.4,3352.9,0.298]
[1732279109709,0.05100007,3353.4,3353.3,0.298]
[1732279110621,0.05100007,3353.4,3353.1,0.298]
[1732279110920,0.05100007,3353.4,3352.8,0.298]
[1732279111701,2.98219,3353.3,3352.8,0.298]
[1732279111920,3.36620901,3353.2,3352.8,0.298]
[1732279112432,0.38392901,3353.2,3352.8,0.298]
[1732279112587,0.38392901,3353.2,3352.3,0.298]
[1732279113103,0.38392901,3353.2,3352.3,0.32782852]
[1732279113432,2.98253,3352.9,3352.4,0.55]
[1732279113640,1.178473,3352.8,3351.7,0.298]
[1732279113843,0.378273,3352.8,3351.7,0.298]
[1732279114125,4.09175535,3352.7,3351.7,0.298]
[1732279114486,1.10903535,3352.7,3351.7,0.298]
[1732279114687,0.8002,3352.3,3351.4,0.298]
[1732279114930,0.37832,3352.2,3351.4,0.298]
[1732279115302,0.37832,3352.2,3351.3,0.7517]
[1732279115501,2.98328,3352.1,3351.3,0.7517]
[1732279115713,2.98328,3352.1,3350.7,0.7894]
[1732279115714,2.98331,3352.0,3350.7,0.7894]
[1732279115923,2.98329,3352.0,3350.7,0.7894]
[1732279116122,0.94768505,3352.0,3350.7,0.7894]
[1732279116327,3.78324,3352.3,3350.9,0.7894]
[1732279116536,1.74782005,3352.3,3351.0,0.02983637]
[1732279116708,1.74782005,3352.3,3351.1,0.7894]
[1732279116709,0.8002,3352.3,3351.1,0.7894]
[1732279117060,0.8193,3352.7,3351.4,0.7894]
[1732279117332,0.8193,3352.7,3351.6,0.8105]
[1732279117739,0.8193,3352.7,3351.7,0.55]
[1732279118100,0.8073,3353.0,3351.7,0.55]
[1732279118301,0.8073,3353.0,3351.9,0.55]
[1732279118534,0.8073,3353.0,3352.1,0.8249]
[1732279118849,0.7733,3353.3,3352.2,0.55]
[1732279119004,3.75552,3353.3,3352.2,0.55]
[1732279119201,2.98228,3353.2,3352.2,0.55]
[1732279119405,3.75552,3353.3,3352.2,0.55]
[1732279119851,0.7733,3353.3,3352.2,0.55]
[1732279120056,0.05100007,3353.4,3352.4,0.55]
[1732279120234,0.87251105,3353.3,3352.4,0.55]
[1732279121745,0.87251105,3353.3,3352.6,0.55]
[1732279121964,0.05100007,3353.4,3352.6,0.55]
[1732279123509,0.05100007,3353.4,3352.8,0.55]
[1732279123911,0.05100007,3353.4,3352.8,0.51]
[1732279124305,0.05100007,3353.4,3352.8,0.53982102]
[1732279124649,0.05100007,3353.4,3352.9,0.8005]
[1732279124805,0.05100007,3353.4,3353.0,0.02981946]
[1732279126062,0.05100007,3353.4,3353.0,0.55]
[1732279127965,0.05100007,3353.4,3353.2,0.55]
[1732279132635,0.05100007,3353.4,3352.9,0.55]
[1732279133057,0.05100007,3353.4,3352.9,0.57982255]
[1732279133335,0.05100007,3353.4,3353.1,0.55]
[1732279134033,0.05100007,3353.4,3352.2,3.2975]
[1732279134034,0.05100007,3353.4,3353.3,1.3653]
[1732279134767,0.04060107,3353.4,3353.3,1.3653]
[1732279135171,0.04060107,3353.4,3353.3,1.6628]
[1732279140169,0.04060107,3353.4,3353.3,0.8475]
[1732279140777,1.07e-06,3353.4,3353.3,1.6477]
[1732279140990,1.07e-06,3353.4,3353.3,2.14228177]
[1732279144395,1.07e-06,3353.4,3353.3,1.59228177]
[1732279145499,1.07e-06,3353.4,3353.3,2.14228177]
[1732279149168,1.07e-06,3353.4,3353.3,2.11247]
[1732279149501,1.07e-06,3353.4,3353.3,0.8475]
[1732279149858,1.07e-06,3353.4,3353.3,0.2975]
[1732279150061,1.07e-06,3353.4,3353.0,0.2975]
[1732279151061,0.7602,3353.3,3353.1,0.2975]
[1732279151380,0.7602,3353.3,3352.0,2.71008046]
[1732279151381,2.98223,3353.2,3352.1,0.7987]
[1732279151673,0.7602,3353.1,3352.1,0.7987]
[1732279152200,0.37420711,3353.3,3351.5,2.71008046]
[1732279152201,0.7602,3352.6,3351.6,0.029827]
[1732279152363,0.7602,3352.6,3351.6,0.327327]
[1732279152704,0.7602,3352.6,3351.6,0.2975]
[1732279152910,0.7602,3352.6,3351.7,0.02982834]
[1732279153203,0.7602,3352.6,3351.6,0.32732834]
[1732279153375,2.71008046,3352.7,3351.5,0.02983109]
[1732279153590,2.98327,3352.1,3351.2,0.2975]
[1732279153916,2.98352,3351.8,3351.2,0.2975]
[1732279154221,0.298327,3352.0,3351.2,0.2975]
[1732279154222,2.98334,3352.0,3351.2,0.2975]
[1732279154393,2.98323,3352.1,3351.2,0.2975]
[1732279154590,2.71008046,3352.4,3351.2,0.2975]
[1732279154803,2.98335,3352.0,3351.2,0.2975]
[1732279155183,2.98325,3352.1,3350.7,0.8286]
[1732279155378,2.98329,3352.0,3350.8,0.5798366]
[1732279155579,2.98329,3352.0,3350.8,0.55]
[1732279156030,0.59642185,3352.1,3350.9,0.02983929]
[1732279156225,2.98335,3352.0,3350.8,0.55]
[1732279156525,0.8062,3351.5,3350.2,0.7707]
[1732279156730,0.8062,3351.5,3349.8,0.36089612]
[1732279156731,0.7843,3351.8,3350.5,0.8046]
[1732279157034,0.7843,3352.2,3351.3,3.51468046]
[1732279157224,2.9832,3352.1,3351.4,0.35146805]
[1732279157522,0.7843,3352.2,3350.9,0.8046]
[1732279157695,0.7843,3352.2,3351.1,2.71008046]
[1732279157908,0.7843,3352.2,3351.2,0.5798312]
[1732279158234,0.7843,3353.0,3351.7,2.71008046]
[1732279158382,0.7843,3353.0,3351.8,1.20583739]
[1732279158589,0.7843,3353.0,3351.8,0.57982934]
[1732279158790,0.7843,3353.0,3351.9,0.8046]
[1732279159101,0.78430107,3353.4,3352.0,0.55]
[1732279159328,0.78430107,3353.4,3352.2,0.55]
[1732279159629,0.78430107,3353.4,3352.3,0.0286749]
[1732279161111,0.78430107,3353.4,3352.2,0.5786749]
[1732279161810,2.98214,3353.3,3352.2,0.55]
[1732279162011,2.98214,3353.3,3352.0,0.0286749]
[1732279162012,0.37662611,3353.3,3352.0,0.5786749]
[1732279163028,0.78430107,3353.4,3352.0,0.5786749]
[1732279163393,2.98213,3353.3,3352.0,0.5786749]
[1732279164388,2.98213,3353.3,3352.0,0.55]
[1732279165225,2.98213,3353.3,3352.2,0.55]
[1732279165991,0.78430107,3353.4,3352.2,0.55]
[1732279166326,0.78430107,3353.4,3352.4,0.55]
[1732279166939,3.76635107,3353.4,3352.4,0.55]
[1732279167269,2.98215,3353.3,3352.4,0.55]
[1732279167432,0.78430107,3353.4,3352.1,0.8475]
[1732279167617,0.78430107,3353.4,3352.3,0.55]
[1732279168014,3.76635107,3353.4,3352.3,0.55]
[1732279168198,1.07e-06,3353.4,3352.4,0.8276]
[1732279168535,1.07e-06,3353.4,3352.5,0.55]
[1732279169028,1.07e-06,3353.4,3352.5,0.57982543]
[1732279170199,1.07e-06,3353.4,3352.5,0.55]
[1732279171348,0.37718646,3353.4,3352.5,0.55]
[1732279171646,1.07e-06,3353.4,3352.6,0.02982365]
[1732279172353,1.07e-06,3353.4,3352.6,0.02982407]
[1732279172663,1.07e-06,3353.4,3352.8,0.55]
[1732279172821,1.07e-06,3353.4,3353.1,0.55]
[1732279174055,1.07e-06,3353.4,3353.0,0.8158]
[1732279175255,1.07e-06,3353.4,3353.1,0.2975]
[1732279175551,1.07e-06,3353.4,3353.3,1.665]
[1732279175848,1.07e-06,3353.4,3353.3,4.86125]
[1732279176069,1.07e-06,3353.4,3353.3,1.86125]
[1732279179966,2.94287431,3354.4,3353.5,0.2975]
[1732279180465,2.94287431,3354.4,3353.7,0.2975]
[1732279180627,0.59238643,3354.3,3353.7,0.2975]
[1732279181223,0.59238643,3354.3,3353.4,0.2975]
[1732279182556,2.94287431,3354.4,3353.4,0.2975]
[1732279184450,2.98101,3354.6,3353.4,0.2975]
[1732279184656,2.98101,3354.6,3353.6,0.2975]
[1732279184861,3.0,3354.7,3353.6,0.464]
[1732279185034,2.98098,3354.6,3353.6,0.464]
[1732279185227,0.673561,3354.5,3353.6,0.464]
[1732279185745,0.8107,3354.4,3353.7,0.2975]
[1732279185947,2.98126,3354.3,3353.7,0.2975]
[1732279186959,2.98126,3354.3,3353.8,0.2975]
[1732279187167,2.98133,3354.2,3353.8,0.2975]
[1732279187370,3.36047,3354.3,3353.8,0.2975]
[1732279187530,0.8107,3354.4,3353.8,0.2975]
[1732279187729,2.98133,3354.2,3353.4,0.2975]
[1732279188127,0.8107,3354.4,3353.4,0.2975]
[1732279188325,2.98129,3354.3,3353.4,0.2975]
[1732279189562,5.96261,3354.3,3353.4,0.2975]
[1732279189864,2.98129,3354.3,3353.4,0.2975]
[1732279190835,0.8107,3354.4,3353.6,0.2975]
[1732279191029,0.8107,3354.4,3353.6,0.464]
[1732279191233,0.8107,3354.4,3353.6,0.2975]
[1732279191927,3.79187,3354.4,3353.6,0.2975]
[1732279192533,0.8107,3354.4,3353.6,0.2975]
[1732279193146,2.9813,3354.3,3353.4,0.2975]
[1732279193347,3.660479,3354.3,3353.4,0.2975]
[1732279193642,3.79189,3354.4,3353.4,0.2975]
[1732279195185,2.98126,3354.3,3353.4,0.2975]
[1732279195835,0.8107,3354.4,3353.4,0.2975]
[1732279195836,2.71008046,3354.1,3353.4,0.2975]
[1732279196053,2.71008046,3354.1,3352.9,0.2975]
[1732279196054,2.98169,3353.8,3352.9,0.2975]
[1732279196252,2.98192,3353.6,3352.9,0.2975]
[1732279196461,3.77689,3353.7,3352.9,0.2975]
[1732279196661,0.7951,3353.7,3352.9,0.2975]
[1732279197337,2.98196,3353.5,3352.9,0.2975]
[1732279197783,6.75874,3353.7,3352.9,0.2975]
[1732279198092,2.9819,3353.6,3352.9,0.2975]
[1732279198245,2.9319,3353.6,3352.6,0.2975]
[1732279198745,2.98198,3353.5,3352.6,0.2975]
[1732279198946,2.98198,3353.5,3352.6,0.46514]
[1732279199380,5.69206046,3353.5,3352.6,0.2975]
[1732279199578,0.7758,3353.2,3352.4,0.2975]
[1732279200552,2.71008046,3352.9,3352.1,0.2975]
[1732279200782,2.98203,3353.5,3351.0,3.06154851]
[1732279200783,0.8251,3353.5,3352.3,0.2975]
[1732279200947,0.01,3354.2,3351.9,2.71008046]
[1732279200948,3.8251,3353.8,3352.5,0.2975]
[1732279201156,3.8251,3353.8,3352.7,0.2975]
[1732279201356,4.77677405,3353.8,3352.7,0.2975]
[1732279201583,2.98128,3354.3,3352.9,0.2975]
[1732279201892,0.8251,3354.2,3353.3,0.2975]
[1732279202391,3.80648,3354.2,3353.3,0.2975]
[1732279202766,3.80648,3354.2,3353.3,0.09946624]
[1732279202961,2.98179,3353.7,3353.0,0.2975]
[1732279203163,2.71008046,3353.9,3353.0,0.2975]
[1732279203164,2.98196,3353.5,3353.0,0.2975]
[1732279203556,2.98222,3353.2,3352.5,0.7873]
[1732279203985,3.35058805,3353.5,3351.5,0.2975]
[1732279204194,2.98249,3352.9,3351.7,1.0848]
[1732279204509,2.98249,3352.9,3351.7,1.46428805]
[1732279204656,2.98249,3352.9,3351.7,1.0848]
[1732279204857,0.8031,3352.8,3351.7,1.0848]
[1732279205579,0.8031,3353.1,3351.8,1.1129]
[1732279205755,0.8031,3353.1,3352.2,0.2975]
[1732279205955,0.68304093,3353.1,3352.3,1.0524]
[1732279206275,0.3350588,3353.4,3352.4,0.8475]
[1732279206455,6.80386,3353.5,3352.5,0.7549]
[1732279206456,0.8219,3353.5,3352.5,0.7549]
[1732279206660,5.69172046,3353.9,3352.7,0.7549]
[1732279206661,3.80362,3353.8,3352.7,0.7549]
[1732279206858,0.678526,3353.7,3352.8,0.8475]
[1732279207456,0.8219,3353.8,3352.8,0.8475]
[1732279207858,3.0,3353.9,3352.8,0.8475]
[1732279208100,4.143548,3354.1,3352.8,0.8475]
[1732279208390,3.0,3353.9,3352.8,1.00774]
[1732279208627,3.96505885,3354.0,3352.8,0.2975]
[1732279208628,2.9817,3353.8,3352.8,0.2975]
[1732279209862,2.98181,3353.7,3352.8,0.2975]
[1732279210289,2.98203,3353.5,3352.8,0.2975]
[1732279210896,2.98215,3353.3,3352.8,0.2975]
[1732279211904,3.76193,3353.4,3352.8,0.2975]
[1732279212076,0.7798,3353.4,3352.8,0.2975]
[1732279212281,0.34898805,3353.3,3352.8,0.2975]
[1732279212921,3.33120805,3353.3,3352.8,0.2975]
[1732279214825,3.33120805,3353.3,3352.7,0.7549]
[1732279215014,3.33119805,3353.3,3352.7,0.7549]
[1732279215534,0.34898805,3353.3,3352.8,0.2975]
[1732279215741,3.33115805,3353.3,3352.8,0.2975]
[1732279216041,2.98237,3353.1,3352.4,0.2975]
[1732279216214,0.60414385,3353.0,3352.4,0.2975]
[1732279216414,3.05906851,3353.3,3352.4,0.2975]
[1732279216735,3.34898805,3353.3,3352.4,0.2975]
[1732279217825,6.33112805,3353.3,3352.4,0.2975]
[1732279217998,2.98223,3353.2,3352.4,0.2975]
[1732279218348,1.00930881,3353.1,3352.4,0.2975]
[1732279219146,3.99161881,3353.1,3352.4,0.2975]
[1732279220252,2.98243,3353.0,3352.4,0.2975]
[1732279220561,2.98254,3352.9,3352.4,0.2975]
[1732279220761,3.95106393,3352.8,3352.4,0.2975]
[1732279220967,2.98267,3352.7,3352.4,0.2975]
[1732279221121,2.98267,3352.7,3352.5,0.2975]
[1732279222166,2.98267,3352.7,3352.1,0.2975]
[1732279222343,0.674371,3352.6,3352.1,0.2975]
[1732279222666,2.98285,3352.5,3352.1,0.2975]
[1732279223066,0.7785,3352.8,3352.1,0.2975]
[1732279223568,3.76109,3352.8,3352.1,0.2975]
[1732279223776,2.98269,3352.7,3352.1,0.2975]
[1732279223925,2.98278,3352.6,3351.4,0.2975]
[1732279224266,0.34885805,3352.7,3351.6,0.2975]
[1732279224769,3.33158805,3352.7,3351.6,0.2975]
[1732279224968,0.70927381,3352.6,3351.6,0.2975]
[1732279225153,0.70927381,3352.6,3351.4,0.2975]
[1732279225465,0.34885805,3352.7,3351.8,0.2975]
[1732279226524,3.33153805,3352.7,3351.8,0.2975]
[1732279226875,2.71008046,3353.0,3351.9,1.0754]
[1732279227072,0.7858,3353.1,3352.1,0.2975]
[1732279227364,2.71008046,3353.3,3352.3,0.2975]
[1732279227597,3.65606551,3353.3,3352.3,0.2975]
[1732279227778,6.63820551,3353.3,3352.3,0.2975]
[1732279227967,2.98223,3353.2,3352.3,0.2975]
[1732279228168,0.7858,3352.8,3352.4,0.2975]
[1732279228369,2.98284,3352.5,3352.4,0.2975]
[1732279229307,2.71008046,3352.7,3351.9,0.2975]
[1732279229461,3.77337,3352.2,3351.9,0.2975]
[1732279230485,2.98323,3352.1,3351.6,0.2975]
[1732279230686,3.77337,3352.2,3351.6,0.2975]
[1732279230863,2.98332,3352.0,3351.6,0.2975]
[1732279231067,3.360732,3351.9,3351.6,0.2975]
[1732279231267,0.377352,3351.9,3351.3,0.2975]
[1732279231604,3.360812,3351.9,3351.3,0.2975]
[1732279231898,0.90542125,3351.8,3351.3,0.2975]
[1732279232772,5.69334046,3352.1,3351.3,0.2975]
[1732279233095,0.7902,3352.2,3351.3,0.2975]
[1732279233300,0.7615,3352.5,3351.0,0.2975]
[1732279233504,0.298289,3352.4,3351.4,0.2975]
[1732279233665,0.4059789,3352.3,3351.6,0.2975]
[1732279233864,0.298289,3352.4,3351.6,0.2975]
[1732279234301,3.281289,3352.4,3351.6,0.2975]
[1732279235025,0.298289,3352.4,3351.6,0.2975]
[1732279235435,3.281269,3352.4,3351.6,0.2975]
[1732279235616,0.298289,3352.4,3351.6,0.2975]
[1732279236727,2.71008046,3352.7,3350.1,0.74093276]
[1732279236728,3.36462606,3352.9,3351.9,0.2975]
[1732279236907,5.98256,3352.9,3351.9,0.2975]
[1732279237105,2.98259,3352.8,3351.9,0.2975]
[1732279237616,2.71008046,3352.7,3351.9,0.2975]
[1732279237939,2.98295,3352.4,3351.9,0.2975]
[1732279238413,8.67604046,3352.4,3351.5,0.2975]
[1732279238629,2.71008046,3352.4,3351.5,0.2975]
[1732279238928,2.71008046,3352.1,3351.5,0.2975]
[1732279239429,0.7702,3352.0,3351.5,0.2975]
[1732279241238,3.75355,3352.0,3351.5,0.2975]
[1732279241600,2.98338,3351.9,3351.5,0.2975]
[1732279241822,2.98354,3351.8,3351.6,0.2975]
[1732279242253,3.75353,3352.0,3351.6,0.2975]
[1732279242396,2.98356,3351.7,3351.6,0.2975]
[1732279242837,2.98356,3351.7,3351.1,0.7561]
[1732279242838,2.98338,3351.9,3351.2,0.2975]
[1732279243173,0.7702,3351.3,3349.9,0.2975]
[1732279243373,2.71008046,3351.0,3349.9,0.2975]
[1732279243571,2.98433,3350.9,3349.9,0.2975]
[1732279244372,2.98441,3350.8,3349.9,0.2975]
[1732279244675,0.56944905,3350.7,3349.9,0.2975]
[1732279245035,3.55389905,3350.7,3349.9,0.2975]
[1732279245235,3.55390905,3350.7,3349.8,0.7561]
[1732279245437,0.56944905,3350.7,3349.8,0.7561]
[1732279245679,2.98443,3350.8,3349.8,0.7561]
[1732279245981,5.69431046,3351.0,3349.8,0.7561]
[1732279246149,2.98438,3350.8,3349.8,0.7561]
[1732279246836,8.67858046,3351.0,3349.8,0.7561]
[1732279247034,0.56943105,3350.9,3349.8,0.7561]
[1732279247468,3.55375105,3350.9,3349.8,0.7561]
[1732279248306,0.56943105,3350.9,3349.8,0.7561]
[1732279248892,2.98433,3350.9,3349.8,0.7561]
[1732279249093,2.98419,3351.0,3349.8,0.7561]
[1732279250603,2.9843,3350.9,3349.8,0.7561]
[1732279251276,2.9841,3351.1,3349.8,0.7561]
[1732279251583,0.64643805,3351.0,3349.8,0.7561]
[1732279251784,3.63067805,3351.0,3349.8,0.7561]
[1732279255709,0.64643805,3351.0,3349.8,0.7561]
[1732279255998,3.35651851,3351.0,3349.8,0.7561]
[1732279256527,2.98428,3350.9,3349.8,0.7561]
[1732279256797,3.34743181,3350.8,3349.8,0.7561]
[1732279259097,0.36307181,3350.8,3349.8,0.7561]
[1732279260414,0.64643805,3351.0,3349.8,0.7561]
[1732279260618,3.63063805,3351.0,3349.8,0.7561]
[1732279261588,2.98433,3350.9,3349.8,0.7561]
[1732279262105,2.98433,3350.9,3349.8,0.68215321]
[1732279262309,3.35651851,3351.0,3349.8,0.68215321]
[1732279262488,3.0,3351.2,3349.8,0.68215321]
[1732279262489,3.75841,3350.6,3349.8,0.68215321]
[1732279262691,0.7738,3350.6,3349.8,0.68215321]
[1732279262918,2.71008046,3350.4,3349.8,0.68215321]
[1732279263089,2.98489,3350.2,3349.8,0.68215321]
[1732279263432,0.7738,3350.6,3348.1,5.36]
[1732279263433,2.98507,3350.0,3348.1,0.2975]
[1732279263587,2.98521,3349.9,3348.3,0.2975]
[1732279263792,0.7738,3350.0,3348.3,0.2975]
[1732279264021,2.98536,3349.7,3348.3,0.2975]
[1732279264234,2.98536,3349.7,3347.7,2.71008046]
[1732279264235,0.55,3349.7,3347.7,2.71008046]
[1732279264526,2.98561,3349.4,3347.8,0.32704023]
[1732279264723,2.98561,3349.4,3348.0,0.2975]
[1732279264933,0.36654182,3349.6,3348.1,0.7572]
[1732279265229,0.36654182,3349.6,3348.1,2.71008046]
[1732279265391,0.36654182,3349.6,3348.4,0.2975]
[1732279265595,3.0,3349.9,3348.7,1.1026]
[1732279265911,3.0,3350.3,3349.0,0.8051]
[1732279266114,3.8121,3350.6,3349.0,1.1026]
[1732279266322,3.0,3350.3,3349.1,0.8051]
[1732279267111,3.0,3350.5,3349.2,0.2975]
[1732279267432,0.97777685,3350.5,3349.5,0.8196]
[1732279268013,0.97777685,3350.5,3349.6,0.2975]
[1732279269816,3.96242685,3350.5,3349.6,0.2975]
[1732279270001,3.702891,3350.4,3349.6,0.2975]
[1732279270200,3.78136,3350.2,3349.6,0.2975]
[1732279270447,6.76634,3350.2,3349.6,0.2975]
[1732279270618,3.78136,3350.2,3349.6,0.2975]
[1732279270822,2.98509,3350.0,3349.6,0.2975]
[1732279271026,0.64915705,3349.9,3349.1,0.8242]
[1732279271227,5.69507046,3350.1,3349.1,0.8242]
[1732279271429,2.98507,3350.1,3349.1,0.8242]
[1732279271639,3.78133,3350.2,3349.1,0.8242]
[1732279271841,0.64914105,3350.1,3349.1,0.8242]
[1732279272006,3.0,3350.5,3349.2,0.2975]
[1732279272206,3.0,3350.5,3349.3,0.7574]
[1732279272427,5.98463,3350.5,3349.4,0.2975]
[1732279272641,0.95222105,3350.4,3349.5,1.0549]
[1732279273057,0.95222105,3350.4,3349.6,0.7574]
[1732279273352,3.81184,3350.9,3349.6,0.7574]
[1732279273851,3.81184,3350.9,3349.7,0.7574]
[1732279273852,0.8275,3350.9,3349.7,0.7574]
[1732279274354,0.38117,3350.8,3349.7,0.7574]
[1732279274950,3.36554,3350.8,3349.7,0.7574]
[1732279275155,3.0,3350.7,3349.7,0.7574]
[1732279275312,0.38117,3350.8,3349.8,1.1113]
[1732279275513,0.69029505,3350.7,3349.8,1.1113]
[1732279276556,3.69029505,3350.7,3349.8,1.1113]
[1732279276726,2.98467,3350.5,3349.8,1.1113]
[1732279276919,9.38488551,3350.7,3349.8,1.1113]
[1732279277120,2.98463,3350.5,3349.8,1.1113]
[1732279277417,2.71008046,3350.4,3349.8,0.8138]
[1732279277618,2.71008046,3350.4,3348.6,0.2975]
[1732279277619,3.80366,3350.3,3349.0,0.2975]
[1732279277853,2.985,3350.1,3349.2,0.2975]
[1732279278831,8.68013046,3350.1,3349.2,0.2975]
[1732279279012,3.97266741,3350.0,3349.2,0.2975]
[1732279280030,2.98523,3349.9,3349.2,0.2975]
[1732279280537,2.98525,3349.8,3349.2,0.2975]
[1732279280745,2.98562,3349.4,3349.1,0.816]
[1732279280950,2.98578,3349.2,3348.1,0.2975]
[1732279281149,2.98584,3349.2,3348.3,0.2975]
[1732279281422,6.26551251,3349.2,3348.3,0.2975]
[1732279281624,8.68179046,3349.2,3348.3,0.2875]
[1732279281959,5.97152,3349.3,3348.3,0.2875]
[1732279282122,0.86816005,3349.2,3348.3,0.2875]
[1732279282919,3.85402005,3349.2,3348.3,0.2875]
[1732279283167,0.86816005,3349.2,3348.3,0.2875]
[1732279283473,3.75182,3349.0,3348.2,0.7829]